bitfinex/quotes_ETHUSD_20251111
["timestamp","ask_amount","ask_price","bid_price","bid_amount"]
[1762897623845,0.5,3418.0,3417.9,0.4776]
[1762897624247,0.62469353,3418.1,3417.9,1.38860548]
[1762897624453,1.55157119,3418.9,3417.9,1.38860548]
[1762897624454,0.77260179,3418.9,3418.4,2.92534519]
[1762897624655,0.002,3419.5,3419.1,3.39554627]
[1762897624814,0.002,3419.5,3419.4,3.39528967]
[1762897625010,0.002,3419.5,3419.4,0.4708]
[1762897625212,0.002,3419.5,3419.4,0.706]
[1762897625213,0.502,3419.5,3419.4,0.706]
[1762897625426,0.502,3419.5,3419.4,1.1768]
[1762897625722,0.502,3419.5,3418.7,0.1856]
[1762897625723,0.9206,3419.5,3418.7,0.1856]
[1762897625911,0.9206,3419.5,3417.2,6.94853892]
[1762897625912,1.39794705,3419.4,3418.8,0.304]
[1762897626144,0.5,3418.9,3418.8,0.304]
[1762897626344,0.5,3418.9,3418.4,3.11121848]
[1762897626345,0.62534526,3419.2,3418.4,0.1859]
[1762897626549,0.5,3418.5,3418.4,0.1859]
[1762897626745,0.0310488,3419.5,3418.4,0.1859]
[1762897626746,0.5,3418.6,3418.4,1.8403]
[1762897626944,0.5,3418.5,3418.4,1.3627]
[1762897627461,0.5,3418.5,3418.4,0.6567]
[1762897627661,0.5,3418.5,3418.4,1.3627]
[1762897628493,0.502,3418.9,3418.4,4.7655936]
[1762897628656,0.502,3418.9,3418.8,0.4708]
[1762897628858,0.002,3418.9,3418.8,1.1768]
[1762897629169,0.002,3418.9,3418.8,1.6544]
[1762897629548,0.002,3418.9,3418.8,0.706]
[1762897629912,0.502,3418.9,3418.8,0.4708]
[1762897630187,0.002,3418.9,3418.8,1.6544]
[1762897630601,0.002,3418.9,3418.8,1.1768]
[1762897630792,0.002,3418.9,3418.8,1.6544]
[1762897631551,0.002,3418.9,3418.8,5.32987387]
[1762897634497,0.002,3418.9,3418.8,20.96361467]
[1762897635014,0.002,3418.9,3418.8,18.03861175]
[1762897635302,0.002,3418.9,3418.8,20.96361467]
[1762897635888,0.002,3418.9,3418.8,18.03861175]
[1762897636073,0.002,3418.9,3418.8,20.96361467]
[1762897636693,0.002,3419.3,3419.2,3.33016473]
[1762897636900,0.002,3419.3,3419.2,6.47348782]
[1762897637202,0.002,3419.3,3419.2,6.95108782]
[1762897637904,0.002,3419.5,3419.4,2.92448967]
[1762897638053,0.002,3420.3,3419.9,4.4633069]
[1762897638258,0.002,3420.3,3419.9,7.36513881]
[1762897638509,0.002,3420.3,3419.9,22.34273881]
[1762897639121,0.002,3420.3,3420.2,3.32930962]
[1762897639404,0.002,3420.3,3420.2,5.82475042]
[1762897639610,0.002,3420.3,3420.2,9.19390275]
[1762897639818,0.002,3420.3,3420.2,5.15959313]
[1762897640120,0.002,3420.3,3420.2,2.3095408]
[1762897640275,0.002,3420.3,3420.2,2.0821408]
[1762897640473,0.002,3420.3,3420.2,2.3095408]
[1762897640701,0.002,3420.3,3420.2,5.23334642]
[1762897641110,0.002,3420.3,3420.2,2.3095408]
[1762897641778,0.5,3420.2,3419.9,14.5]
[1762897641977,0.5,3420.1,3420.0,1.8387408]
[1762897642577,0.5,3420.2,3420.0,2.3095408]
[1762897643519,0.5,3420.2,3420.0,0.705]
[1762897644020,0.5,3420.2,3420.1,0.6565]
[1762897644192,0.002,3420.3,3420.2,4.46305042]
[1762897644518,0.002,3420.3,3420.2,5.41145042]
[1762897644825,0.002,3420.3,3420.2,12.35998934]
[1762897646117,0.002,3420.3,3420.2,13.06498934]
[1762897646318,0.002,3420.3,3420.2,15.95654167]
[1762897646889,0.002,3420.3,3420.2,30.45654167]
[1762897648222,0.002,3420.4,3420.3,4.46296494]
[1762897648521,0.002,3420.7,3420.6,4.46270851]
[1762897648728,0.002,3420.7,3420.6,5.62830851]
[1762897648932,0.002,3420.7,3420.6,21.82406056]
[1762897649130,0.002,3420.7,3419.8,3.33161783]
[1762897649131,0.002,3420.7,3420.1,0.1857]
[1762897649297,0.002,3420.7,3420.2,1.2007]
[1762897649492,0.002,3420.7,3420.6,3.38406371]
[1762897649824,0.002,3420.7,3420.6,4.76220451]
[1762897650123,0.002,3420.7,3420.6,1.1337408]
[1762897650427,0.9637,3420.7,3420.6,1.8387408]
[1762897651534,0.002,3420.7,3420.6,2.2993408]
[1762897651831,0.002,3420.7,3420.6,5.22280451]
[1762897652530,0.002,3420.7,3420.6,5.71850451]
[1762897653427,0.002,3420.7,3420.6,18.58906371]
[1762897653599,0.002,3420.7,3420.6,15.6656]
[1762897653999,0.002,3420.7,3420.6,18.58906371]
[1762897654227,0.002,3420.7,3420.6,14.5]
[1762897654430,0.002,3420.7,3420.6,18.58906371]
[1762897655915,0.002,3420.7,3420.6,15.205]
[1762897656454,0.002,3420.7,3420.1,0.1857]
[1762897656620,0.002,3420.7,3420.3,2.92372014]
[1762897656823,0.002,3420.7,3420.4,4.05735207]
[1762897657021,0.002,3420.7,3420.5,18.12854117]
[1762897657259,0.27171378,3420.7,3420.5,18.12854117]
[1762897657472,0.27171378,3420.7,3420.6,2.92346371]
[1762897657659,0.002,3420.7,3420.6,3.87976371]
[1762897657955,0.002,3420.7,3420.6,6.19397112]
[1762897659227,0.2719117,3420.7,3420.6,7.73321592]
[1762897659464,0.002,3420.7,3420.6,7.73321592]
[1762897659831,0.002,3420.7,3420.6,25.31521592]
[1762897660725,0.002,3420.7,3420.6,24.81951592]
[1762897661134,0.002,3420.7,3420.6,25.31521592]
[1762897661727,0.002,3420.7,3420.6,26.01921592]
[1762897662162,0.002,3420.7,3420.6,15.6337408]
[1762897662338,0.27237931,3420.7,3420.6,15.6337408]
[1762897662539,0.27237931,3420.7,3420.6,20.21750451]
[1762897662728,0.27237931,3420.7,3420.6,19.72180451]
[1762897663061,0.54283165,3420.7,3420.6,19.26120451]
[1762897663228,0.54296413,3420.7,3420.6,19.26120451]
[1762897663629,0.54296413,3420.7,3420.6,16.3377408]
[1762897663849,0.54296413,3420.7,3420.6,19.26120451]
[1762897665692,0.54296413,3420.7,3420.6,19.72180451]
[1762897666053,0.54296413,3420.7,3420.6,16.7983408]
[1762897666393,1.50086413,3420.7,3420.4,0.001]
[1762897666590,0.5046,3420.5,3420.4,0.001]
[1762897666890,0.5046,3420.5,3420.4,6.12417946]
[1762897666891,0.54096413,3420.5,3420.4,6.12417946]
[1762897667097,0.27037931,3420.5,3420.4,9.20617946]
[1762897667265,0.002,3420.7,3420.6,3.32896771]
[1762897667467,0.54496832,3420.7,3420.6,29.45384743]
[1762897667665,0.27348416,3420.7,3420.6,32.84109976]
[1762897668391,0.27348416,3420.7,3420.6,33.54509976]
[1762897669100,0.27348416,3420.7,3420.6,19.5808448]
[1762897669284,0.002,3420.7,3420.6,23.70400851]
[1762897669774,0.27322458,3420.7,3420.6,20.12730851]
[1762897670154,0.27322458,3420.7,3420.6,16.0943408]
[1762897670381,0.27322458,3420.7,3420.6,20.21750451]
[1762897670790,0.73492458,3420.7,3420.6,15.6337408]
[1762897670991,1.68987741,3420.7,3420.6,1.8377408]
[1762897671560,1.68987741,3420.7,3420.4,0.001]
[1762897671561,0.5,3420.5,3420.4,0.001]
[1762897671760,1.04737741,3420.5,3420.4,0.705]
[1762897671980,1.54357741,3420.5,3420.4,0.001]
[1762897672191,1.54357741,3420.5,3420.4,0.705]
[1762897672667,1.54357741,3420.5,3420.4,0.001]
[1762897673007,1.54357741,3420.5,3420.4,0.705]
[1762897673357,1.04737741,3420.5,3420.4,0.705]
[1762897673562,0.54237741,3420.5,3420.4,4.08923466]
[1762897673796,0.54237741,3420.5,3420.4,3.38523466]
[1762897674097,0.54237741,3420.5,3420.4,4.08923466]
[1762897674269,0.54237741,3420.5,3420.4,1.1656]
[1762897674480,1.99997741,3420.5,3420.4,0.705]
[1762897674793,2.00008413,3420.5,3420.4,0.705]
[1762897675024,2.00008413,3420.5,3420.4,0.001]
[1762897675162,2.00008413,3420.5,3420.4,0.705]
[1762897675357,1.50418413,3420.5,3420.4,0.705]
[1762897675576,1.53918413,3420.5,3420.4,0.705]
[1762897676089,0.54248413,3420.5,3420.4,4.11273466]
[1762897676620,0.54248413,3420.5,3420.4,0.705]
[1762897676805,1.51958413,3420.5,3420.4,0.705]
[1762897677406,1.97738413,3420.5,3420.4,0.705]
[1762897678618,1.51958413,3420.5,3420.4,0.705]
[1762897680230,2.49570621,3420.5,3420.4,0.001]
[1762897680388,3.12036881,3420.5,3420.4,0.001]
[1762897680583,2.57788468,3420.5,3420.4,0.001]
[1762897680888,3.12006024,3420.5,3420.4,0.001]
[1762897683117,2.49539483,3420.5,3420.4,0.001]
[1762897683839,3.14834644,3420.5,3420.4,0.001]
[1762897684039,3.11929764,3420.5,3420.4,0.001]
[1762897684224,3.14834644,3420.5,3420.4,0.001]
[1762897684604,3.14834644,3420.5,3420.0,0.001]
[1762897684605,1.1337408,3420.4,3420.0,0.001]
[1762897684856,7.83415198,3420.1,3420.0,0.001]
[1762897685154,0.99282208,3419.8,3419.7,0.001]
[1762897685316,1.98949483,3419.8,3419.7,0.001]
[1762897685516,3.10289764,3419.8,3419.7,0.001]
[1762897685951,2.12057556,3419.8,3419.7,0.001]
[1762897686100,1.49667275,3419.8,3419.7,0.001]
[1762897686515,2.47899483,3419.8,3419.7,0.001]
[1762897688253,4.26355671,3419.8,3419.7,0.001]
[1762897689220,4.26084802,3419.8,3419.7,0.001]
[1762897689817,1.5392448,3419.7,3419.3,0.001]
[1762897690059,8.98349278,3419.4,3419.3,0.001]
[1762897690252,10.14472912,3419.4,3419.3,0.001]
[1762897690430,11.03973312,3419.4,3419.3,0.001]
[1762897690838,11.53973312,3419.4,3419.3,0.001]
[1762897691051,14.46422279,3419.4,3419.3,0.001]
[1762897691371,4.29769922,3419.4,3419.3,0.001]
[1762897691521,3.67592694,3419.4,3419.3,0.001]
[1762897692640,4.32533781,3419.4,3419.3,0.001]
[1762897693721,4.29628901,3419.4,3419.3,0.001]
[1762897694169,3.67592694,3419.4,3419.3,0.001]
[1762897694969,3.18642694,3419.4,3419.3,0.001]
[1762897695173,3.67592694,3419.4,3419.3,0.001]
[1762897697157,2.03228614,3419.4,3419.3,0.001]
[1762897697330,1.53946406,3419.4,3419.3,0.001]
[1762897697529,1.53946406,3419.4,3419.3,0.4571]
[1762897697966,1.53946406,3419.4,3419.3,0.001]
[1762897698168,2.48678614,3419.4,3419.3,0.001]
[1762897698839,2.03228614,3419.4,3419.3,0.001]
[1762897699364,1.53946406,3419.4,3419.3,0.001]
[1762897699564,1.53946406,3419.4,3419.3,0.4571]
[1762897699866,1.0,3419.4,3419.3,0.9361]
[1762897700232,1.53944632,3419.4,3419.3,0.9361]
[1762897700730,1.53944632,3419.4,3419.3,0.4571]
[1762897702833,1.53944632,3419.4,3419.3,0.001]
[1762897703033,1.53944632,3419.4,3419.3,0.4571]
[1762897704533,1.03944632,3419.4,3419.3,0.9361]
[1762897704766,0.5,3419.8,3419.3,1.11962]
[1762897704967,0.5,3419.4,3419.3,0.4571]
[1762897705168,0.5,3419.5,3419.4,2.92445625]
[1762897705465,0.5,3419.4,3419.3,3.40455299]
[1762897705680,0.5,3419.4,3419.3,2.92555299]
[1762897705879,0.5,3419.4,3419.3,3.85605299]
[1762897706165,0.5,3419.4,3419.3,0.9315]
[1762897706756,0.5,3419.4,3419.3,3.8560752]
[1762897707333,0.5,3419.4,3419.3,0.9315]
[1762897707738,0.5,3419.4,3419.3,0.4565]
[1762897708237,1.04131246,3419.4,3419.3,0.4565]
[1762897708640,1.04131246,3419.4,3419.3,0.9315]
[1762897710178,1.04131246,3419.4,3419.3,3.8560752]
[1762897710336,0.54131246,3419.4,3419.3,2.85703396]
[1762897710541,0.54131246,3419.4,3419.3,5.78160916]
[1762897712374,0.54131246,3419.4,3419.3,3.8560752]
[1762897712605,0.54131246,3419.4,3419.3,19.89532]
[1762897712890,0.002,3420.0,3419.8,2.92408738]
[1762897713057,0.002,3420.0,3419.9,3.8545621]
[1762897713239,0.5440972,3420.0,3419.9,3.8545621]
[1762897713778,0.5440972,3420.0,3419.9,0.9305]
[1762897715272,0.5440972,3420.0,3419.9,3.8545621]
[1762897716690,0.5440972,3420.0,3419.9,4.60274131]
[1762897716864,1.0440972,3420.0,3419.9,1.20367921]
[1762897717564,1.0440972,3420.0,3419.9,0.4555]
[1762897719076,1.0440972,3420.0,3419.2,5.04363045]
[1762897719077,0.2254,3419.9,3419.3,0.001]
[1762897719277,0.5,3419.4,3419.3,0.001]
[1762897719607,2.46244844,3419.4,3419.3,0.001]
[1762897720185,1.96962636,3419.4,3419.3,0.001]
[1762897721586,1.51762636,3419.4,3419.3,0.001]
[1762897722118,1.04152636,3419.4,3419.3,0.4565]
[1762897722274,1.04152636,3419.4,3419.3,0.001]
[1762897723510,1.52682636,3419.4,3419.3,0.001]
[1762897723720,2.47164844,3419.4,3419.3,0.001]
[1762897725110,2.01964844,3419.4,3419.3,0.001]
[1762897726622,1.52682636,3419.4,3419.3,0.001]
[1762897726797,1.04152636,3419.4,3419.3,0.4565]
[1762897727926,1.04152636,3419.4,3419.3,0.001]
[1762897728484,2.01964844,3419.4,3419.3,0.001]
[1762897728686,2.47164844,3419.4,3419.3,0.001]
[1762897729711,2.01964844,3419.4,3419.3,0.001]
[1762897730385,2.01989578,3419.4,3419.3,0.001]
[1762897730790,2.47189578,3419.4,3419.3,0.001]
[1762897734389,2.01989578,3419.4,3419.3,0.001]
[1762897736916,1.0417737,3419.4,3419.3,0.4894]
[1762897737115,1.0417737,3419.4,3419.3,0.9487]
[1762897737319,1.0078737,3419.4,3419.3,0.001]
[1762897737662,1.5078737,3419.4,3419.3,0.001]
[1762897739831,1.0417737,3419.4,3419.3,0.4512]
[1762897740433,1.5335737,3419.4,3419.3,0.001]
[1762897741808,1.0417737,3419.4,3419.3,0.001]
[1762897742332,2.49669578,3419.4,3419.3,0.001]
[1762897742495,3.12059138,3419.4,3419.3,0.001]
[1762897745125,3.14964018,3419.4,3419.3,0.001]
[1762897745329,0.99282208,3419.0,3418.9,0.001]
[1762897745547,2.16979138,3419.0,3418.9,0.001]
[1762897745753,2.64009138,3419.0,3418.9,0.001]
[1762897748253,1.6656693,3419.0,3418.9,0.9082]
[1762897748425,1.0417737,3419.0,3418.9,0.9082]
[1762897749419,1.0417737,3419.0,3418.9,0.001]
[1762897749625,2.02639578,3419.0,3418.9,0.001]
[1762897750055,1.0417737,3419.0,3418.9,0.4512]
[1762897750253,0.5417737,3419.0,3418.9,0.9082]
[1762897750453,1.0417737,3419.0,3418.9,0.001]
[1762897750629,1.0417737,3419.0,3418.9,0.4512]
[1762897750832,1.03255851,3419.0,3418.9,0.4512]
[1762897751032,1.52435851,3419.0,3418.9,0.001]
[1762897751238,2.48748059,3419.0,3418.9,0.001]
[1762897752521,3.11156852,3419.0,3418.9,0.001]
[1762897753240,2.64126852,3419.0,3418.9,0.001]
[1762897754230,3.11156852,3419.0,3418.9,0.001]
[1762897758268,2.14946852,3419.0,3418.9,0.001]
[1762897758467,2.14946852,3419.0,3418.9,0.4512]
[1762897758991,1.03255851,3419.0,3418.9,0.9082]
[1762897759193,1.03255851,3419.0,3418.9,0.4512]
[1762897760595,1.03255851,3419.0,3418.9,0.001]
[1762897761991,1.03255851,3419.0,3418.9,0.4512]
[1762897766312,1.50675851,3419.0,3418.9,0.001]
[1762897766510,1.99958059,3419.0,3418.9,0.001]
[1762897766706,3.11333982,3419.0,3418.9,0.001]
[1762897767019,2.14783982,3419.0,3418.9,0.4573]
[1762897767189,1.03255851,3419.0,3418.9,0.942]
[1762897767389,1.03255851,3419.0,3418.9,1.84579133]
[1762897767590,1.03455851,3419.0,3418.9,1.84579133]
[1762897768313,2.00158059,3419.0,3418.9,0.001]
[1762897768518,3.11534903,3419.0,3418.9,0.001]
[1762897769788,0.99282208,3418.7,3418.6,0.001]
[1762897769983,2.15584903,3418.7,3418.6,0.001]
[1762897771125,2.64714903,3418.7,3418.6,0.001]
[1762897771292,2.67619783,3418.7,3418.6,0.001]
[1762897771705,7.81692925,3418.7,3418.6,0.001]
[1762897772928,8.59633666,3418.7,3418.6,0.001]
[1762897773101,0.99282208,3418.6,3418.5,0.001]
[1762897773291,4.26543863,3418.6,3418.5,0.001]
[1762897773619,5.04484604,3418.6,3418.5,0.001]
[1762897775318,4.26543863,3418.6,3418.5,0.001]
[1762897775493,3.13169783,3418.6,3418.5,0.001]
[1762897775889,3.9083856,3418.6,3418.5,0.001]
[1762897776842,5.0421264,3418.6,3418.5,0.001]
[1762897778431,4.26543863,3418.6,3418.5,0.001]
[1762897778592,7.96730044,3418.6,3418.5,0.001]
[1762897778922,5.0130776,3418.6,3418.5,0.001]
[1762897779291,7.96730044,3418.6,3418.5,0.001]
[1762897779492,7.93825164,3418.6,3418.5,0.001]
[1762897779707,7.56706787,3418.6,3418.5,0.001]
[1762897779920,8.60144866,3418.6,3418.5,0.001]
[1762897780446,8.60104291,3418.6,3418.5,0.001]
[1762897783164,0.99282208,3417.3,3417.2,0.4847]
[1762897783358,1.52538059,3417.3,3417.2,0.4847]
[1762897783551,1.52538059,3417.3,3417.2,0.941]
[1762897784338,1.52538059,3417.3,3417.2,0.4563]
[1762897784765,0.99795851,3417.3,3417.0,0.1951]
[1762897784939,0.5,3416.9,3416.8,0.003]
[1762897785150,1.52538059,3416.9,3416.8,0.4877]
[1762897785328,1.52538059,3416.9,3416.8,0.944]
[1762897786663,1.1337408,3416.8,3416.2,0.003]
[1762897786848,0.99282208,3416.3,3416.2,0.003]
[1762897787050,1.52538059,3416.3,3416.2,0.003]
[1762897787379,1.99098059,3416.3,3416.2,0.003]
[1762897787537,2.47318059,3416.3,3416.2,0.003]
[1762897787732,1.1337408,3416.2,3414.0,2.9291154]
[1762897787953,1.15115031,3416.1,3414.3,2.92885803]
[1762897788239,0.5,3415.0,3414.4,0.31493483]
[1762897788570,0.5,3415.0,3414.3,3.081]
[1762897788735,0.5,3415.0,3414.9,2.92834343]
[1762897788937,0.5,3415.4,3415.2,2.9280731]
[1762897789237,1.1337408,3416.6,3414.0,1.8337408]
[1762897789546,0.5,3414.9,3414.3,0.405504]
[1762897789856,0.5,3414.6,3414.4,0.02928772]
[1762897790056,0.5,3414.8,3414.6,2.92854625]
[1762897790378,0.5,3415.3,3414.8,0.405504]
[1762897790740,0.5,3415.3,3414.8,1.5392448]
[1762897790944,0.5,3415.3,3414.9,1.67392448]
[1762897791276,2.95635201,3416.2,3414.7,0.7]
[1762897791480,0.5,3414.6,3414.1,1.1337408]
[1762897791766,0.5,3414.3,3414.2,17.42894382]
[1762897792072,0.0290488,3415.4,3414.2,18.56268462]
[1762897792272,0.5,3414.3,3414.2,1.1337408]
[1762897792458,0.5,3414.5,3414.2,1.1337408]
[1762897792652,0.5,3414.5,3414.4,2.92877225]
[1762897793156,0.5,3414.5,3414.2,18.56266784]
[1762897793356,0.5,3414.9,3414.8,2.92842919]
[1762897793562,0.5,3415.1,3415.0,2.92825768]
[1762897794167,0.5,3415.3,3414.9,2.9283404]
[1762897794369,0.5,3415.3,3415.2,2.9280862]
[1762897795775,0.4864,3416.7,3415.8,2.92750373]
[1762897795952,0.1899,3416.9,3415.8,2.92757187]
[1762897795953,0.5,3415.9,3415.8,2.92757187]
[1762897796155,0.76728048,3415.9,3415.8,2.92757187]
[1762897797280,0.76728048,3415.9,3415.7,0.7]
[1762897797445,0.76728048,3415.9,3415.7,1.105504]
[1762897797446,0.26728048,3415.8,3415.7,1.105504]
[1762897797650,0.26728048,3415.8,3415.7,4.03316158]
[1762897798046,0.23811433,3415.8,3415.7,4.03316158]
[1762897798250,0.23811433,3415.8,3415.7,4.72925328]
[1762897799286,0.5,3415.9,3415.8,2.92757187]
[1762897800259,0.5,3415.8,3415.4,1.1337408]
[1762897800599,1.1337408,3415.4,3413.7,0.0736]
[1762897800750,0.49282208,3414.5,3413.7,0.0736]
[1762897800945,0.5,3414.0,3413.9,2.9292012]
[1762897801173,1.1337408,3415.6,3413.9,2.9292012]
[1762897801174,0.5,3414.2,3414.1,1.1337408]
[1762897801389,0.5,3414.5,3414.0,0.37028012]
[1762897801552,0.1914,3415.5,3414.0,0.37028012]
[1762897801553,0.1914,3415.5,3414.0,3.29935509]
[1762897801749,0.5,3415.0,3414.7,2.92851495]
[1762897801989,0.5,3415.0,3414.9,2.92830226]
[1762897802189,0.1914,3415.8,3415.3,2.92799037]
[1762897802362,0.26768067,3415.7,3415.2,3.6280721]
[1762897802695,0.5,3415.3,3415.2,3.6280721]
[1762897803164,0.49282208,3416.1,3415.3,0.405504]
[1762897803347,0.5,3415.6,3415.5,2.92782901]
[1762897803553,0.5,3415.8,3415.3,0.405504]
[1762897803751,0.5,3415.8,3415.7,2.92758959]
[1762897804054,0.1899,3416.9,3415.8,0.405504]
[1762897804377,0.5,3416.6,3416.4,2.9269895]
[1762897804555,0.5,3416.6,3416.5,3.62697204]
[1762897804900,0.5,3416.8,3416.6,2.92688637]
[1762897805053,0.5,3416.8,3416.5,0.7]
[1762897805255,0.5,3416.8,3415.5,17.42780102]
[1762897805256,0.5,3416.4,3416.3,0.7]
[1762897805456,0.5,3416.3,3416.2,1.8337408]
[1762897805857,0.5,3416.3,3416.2,3.62722908]
[1762897806253,0.5,3416.3,3416.2,1.105504]
[1762897806452,0.5,3416.5,3416.4,2.92705772]
[1762897806762,0.5,3416.7,3416.4,2.9270308]
[1762897806962,0.5,3416.4,3416.3,3.33262473]
[1762897807166,0.5,3416.4,3416.3,3.7358872]
[1762897807467,0.5,3416.4,3416.3,3.73590987]
[1762897807778,0.5,3416.4,3416.3,3.3326474]
[1762897808160,0.5,3416.4,3416.3,2.9271434]
[1762897808363,0.5,3416.4,3416.2,0.7]
[1762897808562,0.1914,3416.9,3415.3,0.91409946]
[1762897808563,0.2204488,3416.9,3415.3,0.91409946]
[1762897808794,0.5,3416.0,3415.4,2.92791473]
[1762897809002,0.5,3415.2,3415.1,2.92817194]
[1762897809289,0.5,3415.4,3415.0,3.62825392]
[1762897809502,0.5,3415.4,3414.4,6.85490032]
[1762897809503,0.49282208,3415.4,3414.4,6.85490032]
[1762897809683,0.5,3414.8,3414.7,2.92850327]
[1762897809851,0.5,3414.8,3414.5,14.5]
[1762897810049,0.5,3414.5,3414.4,0.7]
[1762897810356,0.5,3414.2,3414.1,0.7]
[1762897810520,0.26833392,3414.2,3414.1,3.62902961]
[1762897810658,0.26833392,3414.2,3414.1,0.7]
[1762897810868,0.26833392,3414.2,3414.1,3.62902961]
[1762897811261,0.1914,3415.5,3414.1,2.15477988]
[1762897811461,0.53674462,3415.4,3414.5,6.85490032]
[1762897811702,0.5,3415.1,3415.0,2.92824415]
[1762897811896,0.26837231,3415.1,3415.0,4.03374815]
[1762897812098,0.26837231,3415.1,3415.0,12.02238927]
[1762897812399,0.5,3415.8,3415.7,2.92765758]
[1762897812698,1.03052976,3415.8,3415.7,3.62765758]
[1762897813400,0.26861488,3415.8,3415.7,3.62765758]
[1762897813899,0.26861488,3415.8,3415.7,7.27244372]
[1762897814198,0.26861488,3415.8,3415.7,1.1337408]
[1762897814199,0.76191488,3415.8,3415.7,1.1337408]
[1762897814397,0.76191488,3415.8,3415.7,1.8337408]
[1762897814588,1.23811488,3415.8,3415.4,14.5]
[1762897814789,0.4933,3414.9,3414.1,6.85490032]
[1762897815100,1.03324834,3415.7,3414.4,2.92873255]
[1762897815101,0.4933,3415.1,3414.4,2.92873255]
[1762897815403,0.4933,3415.1,3414.2,0.7]
[1762897815404,0.26899316,3415.0,3414.9,2.92831189]
[1762897815577,0.26899316,3415.0,3414.9,5.64057204]
[1762897815775,0.4933,3415.5,3415.0,1.5392448]
[1762897815997,0.4933,3415.5,3415.4,2.92791473]
[1762897816325,1.0315336,3415.5,3415.4,2.92791473]
[1762897819314,0.5382336,3415.5,3415.4,3.33341873]
[1762897819480,0.2691168,3415.5,3415.4,4.03720062]
[1762897819883,0.4933,3415.9,3415.8,2.92753711]
[1762897820084,1.0320426,3415.9,3415.8,2.92757187]
[1762897820285,0.7626713,3415.9,3415.8,2.92757187]
[1762897821492,0.7626713,3415.9,3415.7,2.92765742]
[1762897821715,0.2693713,3415.8,3415.6,0.7]
[1762897821909,0.2693713,3415.7,3415.6,4.7614794]
[1762897822110,0.2693713,3415.7,3415.6,19.2614794]
[1762897822733,0.2693713,3415.7,3415.6,15.6337408]
[1762897822922,1.51065709,3415.7,3415.0,0.405504]
[1762897823128,0.4933,3415.4,3415.3,3.62793556]
[1762897823434,1.03205709,3415.4,3415.3,2.92793556]
[1762897823621,1.03205709,3415.4,3415.3,3.62800046]
[1762897823952,0.4957,3416.8,3415.4,1.5392448]
[1762897824131,0.4933,3416.6,3416.5,2.92691984]
[1762897824334,1.03233585,3416.6,3416.3,3.33263112]
[1762897824506,0.4933,3416.6,3416.5,2.92697204]
[1762897824707,1.03232108,3416.6,3416.5,2.92697204]
[1762897825200,0.53902108,3416.6,3416.5,2.92697204]
[1762897825406,0.26951054,3416.6,3416.5,3.62697204]
[1762897826225,0.26951054,3416.6,3416.5,0.7]
[1762897826430,1.24171054,3416.6,3415.3,8.15644351]
[1762897826633,0.4789,3416.4,3416.0,2.92740046]
[1762897826848,0.26951054,3416.3,3416.0,0.7]
[1762897827045,0.76281054,3416.2,3416.1,17.42731477]
[1762897827251,0.4933,3416.2,3416.1,17.42731477]
[1762897827616,0.4933,3416.2,3415.5,3.33329571]
[1762897827617,0.3347,3415.9,3413.7,2.16778208]
[1762897827922,1.83858881,3416.2,3413.9,0.69207821]
[1762897827923,0.4933,3414.2,3413.9,0.69207821]
[1762897828119,0.4933,3414.2,3414.1,3.33453361]
[1762897828442,1.03136928,3414.2,3414.1,4.06842961]
[1762897828642,0.53806928,3414.2,3414.1,4.06842961]
[1762897829148,0.26902002,3414.2,3414.1,4.77642961]
[1762897829352,0.26902002,3414.2,3413.9,14.501]
[1762897829515,0.4933,3414.0,3413.9,0.001]
[1762897831133,0.4559,3415.2,3413.9,1.94673215]
[1762897831331,0.4933,3414.7,3414.2,3.33440967]
[1762897831551,0.26897273,3414.6,3414.5,2.92868648]
[1762897831772,0.1893,3415.8,3414.5,9.10214512]
[1762897831916,0.1893,3415.8,3414.6,1.25465445]
[1762897831917,0.4933,3415.1,3414.6,1.25465445]
[1762897832116,0.4933,3415.3,3415.2,2.92801388]
[1762897832354,0.4559,3416.4,3415.5,0.405504]
[1762897832654,0.4933,3415.7,3415.5,1.113504]
[1762897832923,0.4933,3415.7,3415.5,0.708]
[1762897832924,0.5379424,3415.6,3415.5,0.708]
[1762897833099,1.3873424,3415.6,3415.2,0.708]
[1762897833364,0.4933,3415.3,3415.1,0.708]
[1762897833527,0.4933,3415.3,3415.2,2.9280862]
[1762897834270,0.4933,3415.3,3415.2,3.3985862]
[1762897834481,0.4559,3416.3,3415.4,2.92788425]
[1762897834791,0.4933,3415.5,3415.4,3.63688425]
[1762897834934,0.76213399,3415.5,3415.4,3.63688425]
[1762897835133,0.26883399,3415.5,3415.4,4.98708825]
[1762897835353,0.4933,3415.9,3415.8,2.9275716]
[1762897835669,0.26888694,3415.9,3415.8,3.63557187]
[1762897835840,0.4933,3416.1,3415.8,3.63551984]
[1762897836044,0.53781768,3416.0,3415.9,2.92748616]
[1762897836254,0.53781768,3416.0,3415.8,0.708]
[1762897836255,0.26890257,3416.0,3415.8,0.708]
[1762897836461,0.4559,3416.5,3415.8,0.708]
[1762897836692,0.4559,3416.5,3413.6,0.59169297]
[1762897836693,1.0387,3415.9,3414.7,1.6079408]
[1762897837007,0.56694361,3415.8,3414.8,0.92432956]
[1762897837292,0.5454,3415.9,3414.7,0.4742]
[1762897837293,0.4933,3415.2,3415.1,2.92817194]
[1762897837998,0.4933,3415.2,3415.0,0.405504]
[1762897838452,0.4933,3415.1,3415.0,0.405504]
[1762897838655,0.4933,3415.1,3415.0,3.33376168]
[1762897838861,0.4933,3415.1,3415.0,3.80426168]
[1762897839084,0.1893,3415.9,3415.3,2.92800046]
[1762897839381,0.98612208,3415.5,3415.1,0.708]
[1762897839586,0.4933,3415.2,3415.1,0.708]
[1762897839751,1.38702045,3415.2,3414.9,0.405504]
[1762897839951,1.38702045,3415.2,3414.8,0.708]